bitfinex/quotes_BTCUSD_20250414
["timestamp","ask_amount","ask_price","bid_price","bid_amount"]
[1744663125988,0.41854968,84555.0,84554.0,0.0014222]
[1744663127430,0.06117614,84555.0,84554.0,0.0014222]
[1744663127679,0.04929068,84555.0,84554.0,0.2379572]
[1744663127850,0.04635239,84555.0,84554.0,0.2379572]
[1744663128385,0.0297718,84555.0,84554.0,0.2379572]
[1744663128721,0.0247718,84555.0,84554.0,0.2369572]
[1744663129054,0.0287718,84555.0,84554.0,0.2379572]
[1744663129239,0.0257718,84555.0,84554.0,0.2379572]
[1744663129474,0.0287718,84555.0,84554.0,0.2379572]
[1744663129826,0.0247718,84555.0,84554.0,0.2369572]
[1744663130028,0.0257718,84555.0,84554.0,0.2379572]
[1744663130356,0.0277718,84555.0,84554.0,0.2379572]
[1744663130560,0.006,84555.0,84554.0,0.2379572]
[1744663130880,0.006,84555.0,84554.0,0.0014222]
[1744663131039,0.006,84555.0,84554.0,0.2379572]
[1744663132400,0.002,84555.0,84554.0,0.2369572]
[1744663132804,0.236522,84559.0,84556.0,0.236528]
[1744663133166,0.248348,84559.0,84556.0,0.248354]
[1744663133504,0.248348,84559.0,84556.0,0.248355]
[1744663133705,0.236521,84559.0,84557.0,0.248352]
[1744663133863,0.248347,84559.0,84556.0,0.248355]
[1744663134070,0.249347,84559.0,84556.0,0.248355]
[1744663134271,0.236524,84558.0,84556.0,0.248355]
[1744663134700,0.249347,84559.0,84556.0,0.248355]
[1744663135304,0.236524,84558.0,84556.0,0.011826]
[1744663135690,0.251347,84559.0,84556.0,0.011826]
[1744663135891,0.251347,84559.0,84556.0,0.248353]
[1744663136295,0.250347,84559.0,84556.0,0.248353]
[1744663136649,0.001,84558.0,84556.0,0.248353]
[1744663137091,0.250348,84559.0,84556.0,0.248353]
[1744663137438,0.251348,84559.0,84556.0,0.248353]
[1744663137908,0.250348,84559.0,84556.0,0.248353]
[1744663138140,0.001,84558.0,84556.0,0.248353]
[1744663138323,0.239524,84558.0,84556.0,0.248353]
[1744663138513,0.237524,84558.0,84556.0,0.248353]
[1744663139100,0.001,84558.0,84556.0,0.248353]
[1744663139469,0.003,84558.0,84556.0,0.248353]
[1744663139692,0.002,84558.0,84556.0,0.248353]
[1744663139892,0.238525,84558.0,84556.0,0.248353]
[1744663140875,0.003,84558.0,84557.0,0.236526]
[1744663141026,0.236529,84556.0,84554.0,0.2369542]
[1744663141228,0.248352,84557.0,84554.0,0.2369542]
[1744663141559,0.248353,84557.0,84555.0,0.236531]
[1744663141691,0.011826,84557.0,84555.0,0.236531]
[1744663142152,0.001,84556.0,84555.0,0.236531]
[1744663142357,0.248351,84558.0,84554.0,0.2487802]
[1744663142560,0.248351,84558.0,84555.0,0.236532]
[1744663142853,0.002,84557.0,84555.0,0.248358]
[1744663142995,0.00663123,84556.0,84555.0,0.248358]
[1744663143198,0.00663123,84556.0,84554.0,0.0004222]
[1744663143199,0.24316223,84556.0,84554.0,0.0004222]
[1744663143404,0.00663123,84556.0,84554.0,0.0004222]
[1744663144079,0.236532,84555.0,84554.0,0.0004222]
[1744663144528,0.24316023,84555.0,84554.0,0.0004222]
[1744663146063,0.24416023,84555.0,84554.0,0.0004222]
[1744663146271,0.00862823,84555.0,84554.0,0.0004222]
[1744663146472,0.00862823,84555.0,84554.0,0.2860572]
[1744663146672,0.00862823,84555.0,84554.0,0.3324572]
[1744663147055,0.002,84555.0,84554.0,0.3324572]
[1744663147473,0.002,84555.0,84554.0,0.0959222]
[1744663147679,0.002,84555.0,84554.0,0.3324572]
[1744663148723,0.002,84555.0,84554.0,0.45329874]
[1744663148855,4.597e-05,84576.0,84575.0,0.236476]
[1744663149054,0.00669977,84576.0,84575.0,0.284176]
[1744663149255,4.597e-05,84576.0,84575.0,0.40501754]
[1744663150715,4.597e-05,84576.0,84575.0,0.40601754]
[1744663151051,0.00604597,84576.0,84575.0,0.40701754]
[1744663151282,4.597e-05,84576.0,84575.0,0.40601754]
[1744663151614,4.597e-05,84576.0,84575.0,0.40801754]
[1744663155367,4.597e-05,84576.0,84575.0,0.287176]
[1744663158348,0.2433405,84576.0,84575.0,0.003]
[1744663158494,0.23651897,84576.0,84575.0,0.003]
[1744663158698,0.2433405,84576.0,84575.0,0.003]
[1744663159133,0.0068675,84576.0,84575.0,0.003]
[1744663159679,0.2433405,84576.0,84575.0,0.003]
[1744663161226,0.0068675,84576.0,84575.0,0.003]
[1744663161434,0.0068675,84576.0,84575.0,0.239476]
[1744663161653,0.0069075,84576.0,84575.0,0.239476]
[1744663166602,0.0069075,84576.0,84575.0,0.003]
[1744663167867,0.2433805,84576.0,84575.0,0.003]
[1744663169039,0.24118988,84576.0,84575.0,0.003]
[1744663173351,0.00471688,84576.0,84575.0,0.003]
[1744663173582,0.00471688,84576.0,84575.0,0.239476]
[1744663173819,8.597e-05,84576.0,84575.0,0.239476]
[1744663180610,0.23655897,84576.0,84575.0,0.003]
[1744663180855,0.24120745,84576.0,84575.0,0.003]
[1744663181922,0.236483,84573.0,84571.0,0.011824]
[1744663182278,0.00465494,84572.0,84571.0,0.011824]
[1744663182482,0.00465494,84572.0,84571.0,0.24732487]
[1744663182932,0.248299,84575.0,84572.0,0.248306]
[1744663183606,0.00465893,84574.0,84572.0,0.248306]
[1744663184030,0.00465893,84574.0,84573.0,0.236482]
[1744663184284,0.01190897,84576.0,84574.0,0.236477]
[1744663184477,0.00466093,84575.0,84574.0,0.236477]
[1744663186617,0.00466093,84575.0,84574.0,0.237477]
[1744663187939,8.597e-05,84576.0,84575.0,0.284776]
[1744663189785,8.597e-05,84576.0,84575.0,0.236476]
[1744663190167,0.00475099,84576.0,84575.0,0.236476]
[1744663190397,8.597e-05,84576.0,84575.0,0.236476]
[1744663190602,0.00475099,84576.0,84575.0,0.236476]
[1744663190807,8.597e-05,84576.0,84575.0,0.236476]
[1744663191508,8.597e-05,84576.0,84575.0,0.237476]
[1744663192689,0.00475099,84576.0,84575.0,0.237476]
[1744663192895,8.597e-05,84576.0,84575.0,0.237476]
[1744663193696,0.00475099,84576.0,84575.0,0.237476]
[1744663196265,8.597e-05,84576.0,84575.0,0.237476]
[1744663198629,0.00475099,84576.0,84575.0,0.237476]
[1744663199191,8.597e-05,84576.0,84575.0,0.237476]
[1744663199594,8.597e-05,84576.0,84575.0,0.001]
[1744663199998,0.00475099,84576.0,84575.0,0.001]
[1744663200204,0.00475099,84576.0,84575.0,0.237476]
[1744663201716,8.597e-05,84576.0,84575.0,0.237476]
[1744663202161,0.00475099,84576.0,84575.0,0.237476]
[1744663202383,8.597e-05,84576.0,84575.0,0.237476]
[1744663202828,0.24122399,84576.0,84575.0,0.001]
[1744663203288,0.00475099,84576.0,84575.0,0.237476]
[1744663205598,0.00475099,84576.0,84575.0,0.001]
[1744663205777,0.24122399,84576.0,84575.0,0.001]
[1744663206977,0.00475099,84576.0,84575.0,0.001]
[1744663207180,0.24122399,84576.0,84575.0,0.001]
[1744663207384,0.23655897,84576.0,84575.0,0.001]
[1744663207544,0.24122035,84576.0,84575.0,0.001]
[1744663208677,0.00474735,84576.0,84575.0,0.001]
[1744663208884,0.00474735,84576.0,84575.0,0.237476]
[1744663215105,0.00474735,84576.0,84575.0,0.001]
[1744663215360,0.00474735,84576.0,84575.0,0.237476]
[1744663216102,8.597e-05,84576.0,84575.0,0.237476]
[1744663216697,0.00465484,84576.0,84575.0,0.237476]
[1744663216916,8.597e-05,84576.0,84575.0,0.237476]
[1744663217405,0.74360051,84576.0,84575.0,0.001]
[1744663217657,0.84632025,84576.0,84575.0,0.001]
[1744663217912,0.83843733,84576.0,84575.0,0.001]
[1744663218115,0.60196433,84576.0,84554.0,0.0004222]
[1744663218357,0.236532,84555.0,84554.0,0.0004222]
[1744663218585,0.376212,84555.0,84554.0,0.0004222]
[1744663218806,0.38287906,84555.0,84554.0,0.0004222]
[1744663219815,0.38487906,84555.0,84554.0,0.0004222]
[1744663220037,0.40550081,84555.0,84554.0,0.0004222]
[1744663221456,0.39768924,84555.0,84554.0,0.0004222]
[1744663221664,0.25800924,84555.0,84554.0,0.0004222]
[1744663222362,0.25500924,84555.0,84554.0,0.0004222]
[1744663222513,0.25600924,84555.0,84554.0,0.0004222]
[1744663222713,0.25700924,84555.0,84554.0,0.0004222]
[1744663223976,0.25700924,84555.0,84554.0,0.2369572]
[1744663223977,0.00866706,84555.0,84554.0,0.2369572]
[1744663224365,0.238532,84555.0,84554.0,0.0004222]
[1744663224566,0.24523722,84555.0,84554.0,0.0004222]
[1744663225151,0.24423722,84555.0,84554.0,0.0004222]
[1744663225571,0.24323722,84555.0,84554.0,0.0004222]
[1744663225877,0.24423722,84555.0,84554.0,0.0004222]
[1744663227564,0.237532,84555.0,84554.0,0.0004222]
[1744663228965,0.236532,84555.0,84554.0,0.0004222]
[1744663229328,0.236532,84555.0,84554.0,0.0014222]
[1744663230509,0.248349,84559.0,84554.0,0.0014222]
[1744663230510,0.13972,84564.0,84561.0,0.236515]
[1744663230684,0.248343,84561.0,84558.0,0.24835]
[1744663230954,8.597e-05,84576.0,84566.0,0.011825]
[1744663231170,8.597e-05,84576.0,84572.0,0.248306]
[1744663231346,8.597e-05,84576.0,84575.0,0.236476]
[1744663232640,0.00308597,84576.0,84575.0,0.236476]
[1744663232846,0.00955672,84576.0,84575.0,0.236476]
[1744663232999,8.597e-05,84576.0,84575.0,0.236476]
[1744663233202,0.01055672,84576.0,84575.0,0.236476]
[1744663233442,0.00108597,84576.0,84575.0,0.236476]
[1744663233633,0.01355672,84576.0,84575.0,0.236476]
[1744663233831,0.00408597,84576.0,84575.0,0.236476]
[1744663234034,0.01055672,84576.0,84575.0,0.236476]
[1744663234230,0.00108597,84576.0,84575.0,0.35731754]
[1744663234463,0.00208597,84576.0,84575.0,0.40491754]
[1744663235557,0.00108597,84576.0,84575.0,0.40491754]
[1744663235738,8.597e-05,84576.0,84575.0,0.40591754]
[1744663236281,8.597e-05,84576.0,84575.0,0.40691754]
[1744663238452,8.597e-05,84576.0,84575.0,0.35931754]
[1744663243018,8.597e-05,84576.0,84575.0,0.238476]
[1744663243421,0.00967912,84576.0,84575.0,0.238476]
[1744663243639,8.597e-05,84576.0,84575.0,0.238476]
[1744663243838,0.00967912,84576.0,84575.0,0.238476]
[1744663244018,8.597e-05,84576.0,84575.0,0.238476]
[1744663244196,0.00967912,84576.0,84575.0,0.238476]
[1744663244994,0.24615212,84576.0,84575.0,0.002]
[1744663246180,0.00967912,84576.0,84575.0,0.002]
[1744663246562,0.24615212,84576.0,84575.0,0.002]
[1744663247387,0.00967912,84576.0,84575.0,0.002]
[1744663248238,0.00967912,84576.0,84575.0,0.238476]
[1744663248635,8.597e-05,84576.0,84575.0,0.35931754]
[1744663281908,8.597e-05,84576.0,84575.0,0.002]
[1744663281909,0.23655897,84576.0,84575.0,0.002]
[1744663282304,0.24408887,84576.0,84575.0,0.002]
[1744663282857,0.24408887,84576.0,84575.0,0.001]
[1744663283316,0.24508887,84576.0,84575.0,0.001]
[1744663284006,0.23648,84574.0,84571.0,0.011824]
[1744663284174,0.23648,84574.0,84571.0,0.248311]
[1744663284381,0.00752413,84573.0,84571.0,0.248311]
[1744663285172,0.00511927,84572.0,84571.0,0.248311]
[1744663285373,0.24782713,84574.0,84571.0,0.248311]
[1744663285574,0.0051212,84573.0,84571.0,0.248311]
[1744663287163,8.597e-05,84576.0,84572.0,0.011824]
[1744663287402,0.00512504,84575.0,84572.0,0.011824]
[1744663287833,0.00512504,84575.0,84572.0,0.248306]
[1744663288034,0.00512504,84575.0,84574.0,0.236479]
[1744663289343,0.00612504,84575.0,84574.0,0.236479]
[1744663291399,0.001,84575.0,84574.0,0.236479]
[1744663292384,0.00612504,84575.0,84574.0,0.236479]
[1744663293431,0.001,84575.0,84574.0,0.236479]
[1744663294065,0.00612504,84575.0,84574.0,0.236479]
[1744663294644,0.001,84575.0,84574.0,0.236479]
[1744663295548,8.597e-05,84576.0,84575.0,0.236476]
[1744663296387,8.597e-05,84576.0,84575.0,0.35731754]
[1744663296594,9.7e-07,84576.0,84575.0,0.74651754]
[1744663296800,0.000845,84593.0,84592.0,0.284928]
[1744663296801,9.7e-07,84593.0,84592.0,0.284928]
[1744663296964,9.7e-07,84593.0,84592.0,0.74576954]
[1744663296965,4.8e-07,84593.0,84592.0,0.74576954]
[1744663297170,4.8e-07,84593.0,84592.0,0.76031039]
[1744663298501,0.00100048,84593.0,84592.0,0.76831039]
[1744663298863,4.8e-07,84593.0,84592.0,0.76831039]
[1744663299376,4.8e-07,84593.0,84592.0,1.18041039]
[1744663299834,0.00100048,84593.0,84592.0,1.18241039]
[1744663300538,4.8e-07,84593.0,84592.0,1.18241039]
[1744663304028,4.8e-07,84593.0,84592.0,0.77936954]
[1744663304429,4.8e-07,84593.0,84592.0,1.11936954]
[1744663305490,4.8e-07,84593.0,84592.0,0.70726954]
[1744663306614,4.8e-07,84593.0,84592.0,0.36726954]
[1744663312988,4.8e-07,84593.0,84592.0,0.70726954]
[1744663319381,4.8e-07,84593.0,84592.0,0.72181039]
[1744663319590,4.8e-07,84593.0,84592.0,1.14279985]
[1744663320156,4.8e-07,84593.0,84592.0,1.18789985]
[1744663320452,0.0008448,84609.0,84608.0,0.576384]
[1744663320602,0.0008448,84609.0,84608.0,0.69722554]
[1744663321654,0.0008448,84609.0,84608.0,0.70022554]
[1744663322793,0.0008448,84609.0,84608.0,0.70422554]
[1744663323793,0.0008448,84609.0,84608.0,0.71583962]
[1744663331642,0.2372258,84609.0,84608.0,0.007]
[1744663332378,0.01182,84596.0,84593.0,0.01187794]
[1744663332582,0.01182,84601.0,84597.0,0.236414]
[1744663333197,0.01182,84602.0,84599.0,0.236409]
[1744663333416,0.011818,84611.0,84607.0,0.236386]
[1744663333685,0.249041,84610.0,84606.0,0.011819]
[1744663334444,0.012663,84610.0,84606.0,0.011819]
[1744663334587,0.249042,84610.0,84607.0,0.236386]
[1744663334788,0.000845,84610.0,84608.0,0.236384]
[1744663335189,0.012663,84610.0,84606.0,0.248208]
[1744663335388,0.011819,84607.0,84602.0,0.01182]
[1744663335711,0.248206,84607.0,84606.0,0.001]
[1744663335911,0.248206,84607.0,84606.0,0.003]
[1744663336332,0.248206,84607.0,84606.0,0.002]
[1744663336730,0.248206,84607.0,84604.0,0.248213]
[1744663337049,0.2490448,84609.0,84606.0,0.236389]
[1744663337673,0.2490448,84609.0,84606.0,0.002]
[1744663338867,0.2490448,84609.0,84606.0,0.001]
[1744663339069,0.2490448,84609.0,84606.0,0.003]
[1744663339278,0.2490448,84609.0,84606.0,0.002]
[1744663339578,0.2490448,84609.0,84606.0,0.003]
[1744663339785,0.236384,84608.0,84606.0,0.239389]
[1744663339984,0.236384,84608.0,84606.0,0.003]
[1744663340187,0.236387,84607.0,84606.0,0.003]
[1744663341405,0.236384,84608.0,84606.0,0.003]
[1744663341856,0.248203,84608.0,84604.0,0.248214]
[1744663342072,0.236388,84607.0,84604.0,0.248214]
[1744663342274,0.236388,84607.0,84606.0,0.002]
[1744663342530,0.236388,84607.0,84606.0,0.003]
[1744663342925,0.236392,84606.0,84603.0,0.011819]
[1744663343128,0.236392,84606.0,84604.0,0.003]
[1744663343562,0.236392,84606.0,84604.0,0.002]
[1744663344600,0.011819,84608.0,84604.0,0.013819]
[1744663344755,0.0008448,84609.0,84608.0,0.236384]
[1744663345386,0.00564301,84609.0,84608.0,0.236384]
[1744663345742,0.00564301,84609.0,84607.0,0.236387]
[1744663346044,0.25384601,84609.0,84608.0,0.002]
[1744663346668,0.236385,84608.0,84605.0,0.248209]
[1744663346894,0.248204,84608.0,84605.0,0.248209]
[1744663347094,0.00488956,84607.0,84605.0,0.248209]
[1744663347295,0.00488956,84607.0,84605.0,0.011819]
[1744663347497,0.00488956,84607.0,84605.0,0.248211]
[1744663347694,0.236386,84608.0,84605.0,0.248211]
[1744663348033,0.0008448,84609.0,84607.0,0.236386]
[1744663348311,0.24127548,84608.0,84606.0,0.011819]
[1744663348520,0.24127548,84608.0,84605.0,0.249211]
[1744663349072,0.24127548,84608.0,84605.0,0.250211]
[1744663349291,0.25309448,84608.0,84605.0,0.250211]
[1744663349494,0.25309448,84608.0,84605.0,0.251211]
[1744663349897,0.25309448,84608.0,84605.0,0.250211]
[1744663350212,0.25309448,84608.0,84605.0,0.251211]
[1744663351025,0.236388,84607.0,84605.0,0.003]
[1744663351231,0.00488764,84606.0,84605.0,0.003]
[1744663351759,0.00488764,84606.0,84605.0,0.239392]
[1744663352271,0.00488764,84606.0,84605.0,0.236392]
[1744663352483,0.00488764,84606.0,84605.0,0.237392]
[1744663352671,0.00488764,84606.0,84605.0,0.239392]
[1744663352962,0.00488764,84606.0,84605.0,0.236392]
[1744663353257,0.00488764,84606.0,84605.0,0.239392]
[1744663355257,0.2490478,84609.0,84606.0,0.248207]
[1744663355436,0.00489148,84608.0,84607.0,0.236387]
[1744663355639,0.00489148,84608.0,84606.0,0.248206]
[1744663355884,0.24127748,84608.0,84606.0,0.011819]
[1744663356394,0.24127748,84608.0,84606.0,0.012819]
[1744663356719,0.236387,84607.0,84606.0,0.001]
[1744663356905,0.24127548,84608.0,84605.0,0.248211]
[1744663357223,0.00476703,84607.0,84605.0,0.248211]
[1744663357417,0.24115403,84607.0,84605.0,0.011819]
[1744663358169,0.24115403,84607.0,84606.0,0.001]
[1744663358572,0.24115403,84607.0,84606.0,0.002]
[1744663359382,0.24115403,84607.0,84605.0,0.248211]
[1744663359805,0.24115403,84607.0,84606.0,0.003]
[1744663361425,0.24115403,84607.0,84606.0,0.001]
[1744663361633,0.24115403,84607.0,84605.0,0.250211]
[1744663361922,0.24115403,84607.0,84605.0,0.249211]
[1744663362274,0.24115403,84607.0,84606.0,0.002]
[1744663362530,0.24115403,84607.0,84605.0,0.249211]
[1744663362686,0.24115403,84607.0,84606.0,0.236389]
[1744663362687,0.00476703,84607.0,84606.0,0.236389]
[1744663363140,0.2490448,84609.0,84606.0,0.236389]
[1744663363366,0.00476703,84607.0,84606.0,0.236389]
[1744663363504,0.236384,84608.0,84605.0,0.248211]
[1744663363700,0.00476703,84607.0,84605.0,0.248211]
[1744663364419,0.00476703,84607.0,84606.0,0.237389]
[1744663364623,0.0126638,84609.0,84607.0,0.236386]
[1744663364831,0.00476895,84608.0,84606.0,0.250208]
[1744663365210,0.00476895,84608.0,84607.0,0.236387]
[1744663365921,0.00476895,84608.0,84607.0,0.237387]
[1744663366472,0.00476895,84608.0,84607.0,0.001]
[1744663366671,0.00476895,84608.0,84607.0,0.003]
[1744663367287,0.00476895,84608.0,84607.0,0.002]
[1744663367503,0.00476895,84608.0,84607.0,0.238387]
[1744663367704,0.00476895,84608.0,84607.0,0.239387]
[1744663369309,0.24115295,84608.0,84607.0,0.003]
[1744663370497,0.28735295,84608.0,84607.0,0.003]
[1744663371215,0.28735295,84608.0,84607.0,0.002]
[1744663371439,0.23643,84592.0,84590.0,0.011821]
[1744663371774,0.00475917,84591.0,84590.0,0.011821]
[1744663372601,0.00475917,84591.0,84590.0,0.005]
[1744663372808,0.24119017,84591.0,84590.0,0.008]
[1744663373503,0.24119017,84591.0,84590.0,0.003]
[1744663373923,0.24119017,84591.0,84580.0,0.011823]
[1744663373924,0.236446,84586.0,84580.0,0.011823]
[1744663374110,0.248276,84585.0,84582.0,0.12084154]
[1744663374291,0.24998232,84585.0,84582.0,0.35729754]
[1744663374528,0.24998232,84585.0,84582.0,0.36911954]
[1744663374854,0.24797332,84586.0,84583.0,0.236453]
[1744663375055,0.24797332,84586.0,84584.0,0.12084154]
[1744663375815,0.248257,84590.0,84584.0,0.13266354]
[1744663376042,0.23644,84588.0,84585.0,0.248269]
[1744663376211,0.236444,84587.0,84585.0,0.13266354]
[1744663376414,0.248248,84593.0,84586.0,0.011822]
[1744663376614,0.23643,84592.0,84587.0,0.236442]
[1744663376835,0.236424,84594.0,84591.0,0.23643]
[1744663377042,0.236426,84593.0,84591.0,0.248251]
[1744663377240,0.236428,84592.0,84590.0,0.011821]
[1744663377540,0.011821,84592.0,84589.0,0.011821]
[1744663377716,0.011821,84593.0,84590.0,0.236434]
[1744663377906,0.011821,84592.0,84589.0,0.011821]
[1744663378555,0.248252,84592.0,84589.0,0.011821]
[1744663378757,0.248252,84592.0,84588.0,0.236438]
[1744663378758,0.011821,84589.0,84585.0,0.36910954]
[1744663378932,0.248262,84588.0,84585.0,0.36910954]
[1744663379555,0.236444,84587.0,84585.0,0.12084154]
[1744663379912,0.236444,84587.0,84585.0,0.12284154]
[1744663380123,0.236444,84587.0,84585.0,0.12084154]
[1744663380322,0.248262,84588.0,84586.0,0.236445]
[1744663380774,0.248262,84588.0,84585.0,0.37111054]
[1744663381412,0.236434,84590.0,84586.0,0.011822]
[1744663381543,0.236434,84590.0,84588.0,0.23644]
[1744663381747,0.236434,84590.0,84586.0,0.011822]
[1744663382214,0.236437,84589.0,84586.0,0.248266]
[1744663383107,0.248255,84590.0,84587.0,0.236442]
[1744663385326,0.248255,84590.0,84587.0,0.237442]
[1744663386149,0.248255,84590.0,84587.0,0.238442]
[1744663386490,0.011821,84590.0,84587.0,0.002]
[1744663386624,0.23644,84588.0,84587.0,0.002]
[1744663387062,0.236439,84589.0,84587.0,0.002]
[1744663387650,0.23644,84588.0,84586.0,0.011822]
[1744663387846,0.24826,84589.0,84587.0,0.002]
[1744663388427,0.24826,84589.0,84587.0,0.001]
[1744663388648,0.24826,84589.0,84587.0,0.002]
[1744663389151,0.23644,84588.0,84587.0,0.001]
[1744663389348,0.23644,84588.0,84587.0,0.002]
[1744663389550,0.24826,84589.0,84587.0,0.002]
[1744663389759,0.011821,84590.0,84587.0,0.250262]
[1744663390119,0.248255,84590.0,84587.0,0.249262]
[1744663390319,0.248255,84590.0,84587.0,0.250262]
[1744663390555,0.248255,84590.0,84587.0,0.249262]
[1744663390774,0.248255,84590.0,84587.0,0.248262]
[1744663390976,0.248255,84590.0,84587.0,0.249262]
[1744663391553,0.248255,84590.0,84587.0,0.250262]
[1744663391907,0.248255,84590.0,84587.0,0.249262]
[1744663392267,0.248255,84590.0,84587.0,0.250262]
[1744663394816,0.23644,84588.0,84587.0,0.002]
[1744663395776,0.23644,84588.0,84587.0,0.001]
[1744663396134,0.23644,84588.0,84587.0,0.002]
[1744663396536,0.23644,84588.0,84587.0,0.001]
[1744663396833,0.248253,84591.0,84588.0,0.236439]
[1744663397688,0.236435,84590.0,84588.0,0.236439]
[1744663398440,0.236435,84590.0,84587.0,0.249262]
[1744663398642,0.236435,84590.0,84588.0,0.001]
[1744663399041,0.236435,84590.0,84588.0,0.002]
[1744663399805,0.236435,84590.0,84588.0,0.001]
[1744663400388,0.236435,84590.0,84588.0,0.002]
[1744663403653,0.236437,84589.0,84588.0,0.002]
[1744663404443,0.236437,84589.0,84588.0,0.001]
[1744663405271,0.236435,84590.0,84588.0,0.002]
[1744663406071,0.236437,84589.0,84588.0,0.002]
[1744663406607,0.236437,84589.0,84587.0,0.248262]
[1744663406806,0.236437,84589.0,84588.0,0.002]
[1744663407250,0.011821,84591.0,84588.0,0.249262]
[1744663407471,0.248254,84591.0,84588.0,0.250262]
[1744663407955,0.236435,84590.0,84588.0,0.013822]
[1744663408166,0.236435,84590.0,84588.0,0.012822]
[1744663408364,0.236435,84590.0,84588.0,0.011822]
[1744663408614,0.236435,84590.0,84588.0,0.012822]
[1744663408792,0.236437,84589.0,84588.0,0.002]
[1744663409085,0.236437,84589.0,84588.0,0.001]
[1744663409269,0.236437,84589.0,84588.0,0.002]
[1744663409588,0.236437,84589.0,84588.0,0.001]
[1744663409885,0.236437,84589.0,84588.0,0.002]
[1744663410121,0.236437,84589.0,84588.0,0.001]
[1744663410271,0.236437,84589.0,84588.0,0.002]
[1744663410475,0.236437,84589.0,84588.0,0.001]
[1744663410705,0.236437,84589.0,84588.0,0.002]
[1744663415279,0.421697,84589.0,84588.0,0.002]
[1744663415480,0.61004909,84589.0,84588.0,0.002]
[1744663415652,0.62104887,84589.0,84588.0,0.002]
[1744663416080,0.236456,84582.0,84563.0,0.011825]
[1744663416289,0.281956,84582.0,84561.0,0.236515]
[1744663416507,0.281956,84582.0,84564.0,0.011825]
[1744663416685,0.30396655,84582.0,84564.0,0.011825]
[1744663417032,0.31496633,84582.0,84564.0,0.011825]
[1744663417242,0.07851033,84582.0,84564.0,0.011825]
[1744663417412,0.07851033,84582.0,84581.0,0.23691951]
[1744663417413,0.03601033,84582.0,84581.0,0.23691951]
[1744663417614,0.03601033,84582.0,84581.0,0.00046051]
[1744663417832,0.27246633,84582.0,84581.0,0.00046051]
[1744663418025,0.27746633,84582.0,84581.0,0.00046051]
[1744663418183,0.25545578,84582.0,84581.0,0.00046051]
[1744663418624,0.244456,84582.0,84581.0,0.00046051]
[1744663418830,0.008,84582.0,84581.0,0.00046051]
[1744663418976,0.244456,84582.0,84581.0,0.00046051]
[1744663419855,0.241456,84582.0,84581.0,0.00046051]
[1744663420236,0.243456,84582.0,84581.0,0.00046051]
[1744663421385,0.238456,84582.0,84581.0,0.00046051]
[1744663421797,0.242456,84582.0,84581.0,0.00046051]
[1744663422001,0.25342789,84582.0,84581.0,0.00046051]
[1744663422158,0.30312789,84582.0,84581.0,0.00046051]
[1744663422363,0.32507011,84582.0,84581.0,0.00046051]
[1744663423723,0.08861411,84582.0,84581.0,0.00046051]
[1744663423897,0.27537011,84582.0,84581.0,0.00046051]
[1744663424078,0.26439822,84582.0,84581.0,0.00046051]
[1744663424484,0.242456,84582.0,84581.0,0.00046051]
[1744663425511,0.27535975,84582.0,84581.0,0.00046051]
[1744663432657,0.32365975,84582.0,84581.0,0.00046051]
[1744663433700,0.03890375,84582.0,84581.0,0.00046051]
[1744663433855,0.01697189,84582.0,84581.0,0.23691951]
[1744663434475,0.006,84582.0,84581.0,0.23691951]
[1744663434680,0.004,84582.0,84581.0,0.23691951]
[1744663435003,0.002,84582.0,84581.0,0.23691951]
[1744663435754,0.003,84582.0,84581.0,0.23691951]
[1744663446092,0.003,84582.0,84581.0,0.00046051]
[1744663446316,0.003,84582.0,84581.0,0.23691951]
[1744663447009,0.003,84582.0,84581.0,0.00046051]
[1744663447663,0.003,84582.0,84581.0,0.23691951]
[1744663454672,0.003,84582.0,84581.0,0.00046051]
[1744663454878,0.239456,84582.0,84581.0,0.00046051]
[1744663456904,0.26140792,84582.0,84581.0,0.00046051]
[1744663457711,0.239456,84582.0,84581.0,0.00046051]
[1744663461844,0.26144023,84582.0,84581.0,0.00046051]
[1744663464303,0.27242554,84582.0,84581.0,0.00046051]
[1744663465513,0.26144023,84582.0,84581.0,0.00046051]
[1744663467469,0.239456,84582.0,84581.0,0.00046051]
[1744663470375,0.239496,84582.0,84581.0,0.00046051]
[1744663470565,0.26147744,84582.0,84581.0,0.00046051]
[1744663482133,0.27247698,84582.0,84581.0,0.00046051]
[1744663482967,0.26147744,84582.0,84581.0,0.00046051]
[1744663489533,0.27247982,84582.0,84581.0,0.00046051]
[1744663495699,0.03602382,84582.0,84581.0,0.23691951]
[1744663495897,0.01162508,84611.0,84608.0,0.236384]
[1744663496099,0.0008444,84623.0,84608.0,0.236384]
[1744663496270,0.0008444,84623.0,84608.0,0.35722554]
[1744663496476,0.0008444,84623.0,84608.0,0.36909829]
[1744663497401,0.0038448,84609.0,84608.0,0.36909829]
[1744663497703,0.0008448,84609.0,84608.0,0.36909829]
[1744663498434,0.0008448,84609.0,84608.0,0.41609829]
[1744663498861,0.0018448,84609.0,84608.0,0.41609829]
[1744663499405,0.0028448,84609.0,84608.0,0.41609829]
[1744663500706,0.0018448,84609.0,84608.0,0.35722554]
[1744663500908,0.0008448,84609.0,84608.0,0.35722554]
[1744663511500,0.0008448,84609.0,84608.0,0.74242554]
[1744663511699,8e-07,84609.0,84608.0,0.80446639]
[1744663513391,8e-07,84609.0,84608.0,1.21656639]
[1744663513905,8e-07,84609.0,84608.0,1.20202554]
[1744663544682,8e-07,84609.0,84608.0,1.10932554]
[1744663549778,4e-07,84625.0,84624.0,0.576339]
[1744663549992,2e-07,84632.0,84631.0,0.57632]
[1744663550142,2e-07,84632.0,84631.0,0.69716154]
[1744663550357,0.0001091,84632.0,84631.0,0.69716154]
[1744663551507,0.0021091,84632.0,84631.0,0.83612154]
[1744663551716,0.0001091,84632.0,84631.0,0.83612154]
[1744663552064,0.0001091,84632.0,84631.0,0.84212154]
[1744663552065,0.0011091,84632.0,84631.0,0.84212154]
[1744663552270,0.0011091,84632.0,84631.0,0.83612154]
[1744663552696,0.0021091,84632.0,84631.0,0.84212154]
[1744663552893,0.0021091,84632.0,84631.0,0.84512154]